fUSD/lending_fUSD_20260107
["ID","MTS","AMOUNT","RATE_DAILY","PERIOD"]
[400718860,1767793839242,-941.78607106,0.00016438,2]
[400718861,1767793839251,-941.78607106,0.00016438,2]
[400718862,1767793839261,-938.64678416,0.00016438,2]
[400718863,1767793839270,-938.64678416,0.00016438,2]
[400718864,1767793839279,-938.64678416,0.00016438,2]
[400718865,1767793839288,-938.64678416,0.00016438,2]
[400718866,1767793839297,-938.64678416,0.00016438,2]
[400718867,1767793839307,-938.64678416,0.00016438,2]
[400718868,1767793839317,-938.64678416,0.00016438,2]
[400718869,1767793839326,-938.64678416,0.00016438,2]
[400718870,1767793839335,-938.64678416,0.00016438,2]
[400718871,1767793839344,-938.64678416,0.00016438,2]
[400718872,1767793839354,-938.64678416,0.00016438,2]
[400718873,1767793839364,-938.64678416,0.00016438,2]
[400718874,1767793839373,-938.64678416,0.00016438,2]
[400718875,1767793839383,-938.64678416,0.00016438,2]
[400718876,1767793839392,-938.64678416,0.00016438,2]
[400718877,1767793839402,-938.64678416,0.00016438,2]
[400718878,1767793839411,-938.64678416,0.00016438,2]
[400718879,1767793839420,-938.64678416,0.00016438,2]
[400718880,1767793839430,-938.64678416,0.00016438,2]
[400718881,1767793839439,-938.64678416,0.00016438,2]
[400718882,1767793839448,-938.64678416,0.00016438,2]
[400718883,1767793839457,-938.64678416,0.00016438,2]
[400718884,1767793839467,-938.64678416,0.00016438,2]
[400718885,1767793839476,-938.64678416,0.00016438,2]
[400718886,1767793839485,-938.64678416,0.00016438,2]
[400718887,1767793839495,-938.64678416,0.00016438,2]
[400718888,1767793839504,-938.64678416,0.00016438,2]
[400718889,1767793839513,-1138.64297351,0.00016438,2]
[400718890,1767793839524,-1138.64297351,0.00016438,2]
[400718891,1767793839533,-1138.64297351,0.00016438,2]
[400718892,1767793839542,-1138.64297351,0.00016438,2]
[400718893,1767793839551,-14351.77,0.00016438,2]
[400718894,1767793839560,-1000.0,0.0001646,2]
[400718895,1767793839571,-1473.73,0.00016462,2]
[400718896,1767793839581,-1200.0,0.000165,2]
[400718897,1767793839592,-23992.66237655,0.0001651,2]
[400718898,1767793839603,-500.0,0.00016529,2]
[400718899,1767793839614,-500.0,0.00016529,2]
[400718900,1767793839625,-1000.0,0.00016581,2]
[400718901,1767793839634,-322.23,0.00016591,2]
[400718902,1767793839644,-200.0,0.0001661,2]
[400718903,1767793839653,-500.0,0.0001661,2]
[400718904,1767793839663,-151.0,0.0001661,2]
[400718905,1767793839672,-151.0,0.0001661,2]
[400718906,1767793839682,-151.0,0.0001661,2]
[400718907,1767793839691,-151.0,0.0001661,2]
[400718908,1767793839700,-151.0,0.0001661,2]
[400718909,1767793839710,-151.0,0.0001661,2]
[400718910,1767793839720,-151.0,0.0001661,2]
[400718911,1767793839729,-240.25800598,0.0001661,2]
[400718912,1767793839740,-451.40062189,0.0001662,2]
[400718913,1767793839755,-537.05653843,0.0001662,2]
[400718914,1767793839765,-151.0,0.00016633,2]
[400718915,1767793839774,-151.0,0.00016635,2]
[400718916,1767793839785,-151.0,0.00016644,2]
[400718917,1767793839795,-151.0,0.00016644,2]
[400718918,1767793839804,-151.0,0.00016644,2]
[400718919,1767793839813,-151.0,0.00016644,2]
[400718920,1767793839824,-574.12855637,0.00016645,2]
[400718921,1767793839834,-500.0,0.00016645,2]
[400718922,1767793839843,-500.0,0.00016645,2]
[400718923,1767793839853,-500.0,0.00016645,2]
[400718924,1767793839862,-500.0,0.00016645,2]
[400718925,1767793839871,-500.0,0.00016645,2]
[400718926,1767793839881,-743.29710594,0.00016645,2]
[400718927,1767793839892,-500.0,0.00016645,2]
[400718928,1767793839902,-500.0,0.00016645,2]
[400718929,1767793839913,-500.0,0.00016645,2]
[400718930,1767793839924,-200.0,0.00016645,2]
[400718932,1767793839934,-500.0,0.00016645,2]
[400718933,1767793839944,-207.4,0.00016645,2]
[400718934,1767793839953,-500.0,0.00016645,2]
[400718935,1767793839962,-215.0738,0.00016645,2]
[400718936,1767793839971,-500.0,0.00016645,2]
[400718937,1767793839981,-223.0315306,0.00016645,2]
[400718938,1767793839991,-2000.0,0.00016645,2]
[400718939,1767793840000,-231.28369723,0.00016645,2]
[400718940,1767793840009,-2000.0,0.00016645,2]
[400718941,1767793840019,-239.84119403,0.00016645,2]
[400718942,1767793840030,-248.71531821,0.00016645,2]
[400718943,1767793840039,-2000.0,0.00016645,2]
[400718944,1767793840048,-257.91778498,0.00016645,2]
[400718945,1767793840058,-2000.0,0.00016645,2]
[400718946,1767793840067,-267.46074303,0.00016645,2]
[400718947,1767793840077,-2000.0,0.00016645,2]
[400718948,1767793840086,-277.35679052,0.00016645,2]
[400718949,1767793840095,-2000.0,0.00016645,2]
[400718950,1767793840105,-2000.0,0.00016645,2]
[400718951,1767793840115,-2000.0,0.00016645,2]
[400718952,1767793840124,-2000.0,0.00016645,2]
[400718953,1767793840134,-2000.0,0.00016645,2]
[400718954,1767793840143,-2000.0,0.00016645,2]
[400718955,1767793840152,-250.0,0.00016645,2]
[400718956,1767793840161,-250.0,0.00016645,2]
[400718957,1767793840171,-250.0,0.00016645,2]
[400718958,1767793840180,-250.0,0.00016645,2]
[400718959,1767793840190,-250.0,0.00016645,2]
[400718960,1767793840200,-250.0,0.00016645,2]
[400718961,1767793840209,-250.0,0.00016645,2]
[400718962,1767793840218,-250.0,0.00016645,2]
[400718963,1767793840227,-250.0,0.00016645,2]
[400718964,1767793840237,-250.0,0.00016645,2]
[400718965,1767793840246,-250.0,0.00016645,2]
[400718966,1767793840256,-151.0,0.00016647,2]
[400718967,1767793840266,-151.0,0.00016647,2]
[400718968,1767793840275,-1154.93,0.00016647,2]
[400718969,1767793840285,-166.66,0.00016657,2]
[400718970,1767793840296,-151.0,0.00016664,2]
[400718971,1767793840305,-23992.66237648,0.00016664,2]
[400718972,1767793840314,-151.0,0.00016671,2]
[400718973,1767793840323,-500.0,0.00016685,2]
[400718974,1767793840332,-165.17,0.00016712,2]
[400718975,1767793840342,-500.0,0.00016718,2]
[400718976,1767793840351,-500.0,0.00016718,2]
[400718977,1767793840360,-25215.64621736,0.00016719,2]
[400718978,1767793840369,-1473.73,0.00016736,2]
[400718979,1767793840379,-151.0,0.00016765,2]
[400718980,1767793840388,-151.0,0.00016765,2]
[400718981,1767793840397,-1000.0,0.00016767,2]
[400718982,1767793840407,-23992.66237648,0.00016819,2]
[400718983,1767793840417,-22796.99849466,0.00016866,2]
[400718984,1767793840427,-1000.0,0.00016868,2]
[400718985,1767793840436,-692.66339032,0.00016889,2]
[400718987,1767793840445,-1438.08,0.00016891,2]
[400718989,1767793840455,-1000.0,0.00016918,2]
[400718991,1767793840464,-840.404012,0.0001693,2]
[400718992,1767793840473,-1161.85,0.00016943,2]
[400718994,1767793840484,-5888.0,0.00016956,2]
[400718996,1767793840493,-266.15009014,0.00016959,2]
[400718999,1767793840502,-630.65677036,0.00016959,2]
[400719001,1767793840511,-170.95590478,0.00016959,2]
[400719003,1767793840521,-500.0,0.00016959,2]
[400719005,1767793840530,-43925.22257676,0.0001696,2]
[400719007,1767793840539,-1000.0,0.00016972,2]
[400719009,1767793840548,-23992.66237648,0.00016973,2]
[400719010,1767793840557,-663.44389053,0.00016985,2]
[400719013,1767793840572,-13758.88156027,0.00016985,2]
[400719015,1767793840583,-500.0,0.00016986,2]
[400719017,1767793840592,-500.0,0.00016986,2]
[400719018,1767793840602,-402719.6,0.00016986,2]
[400719020,1767793840611,-300.0,0.00016989,2]
[400719022,1767793840620,-5888.0,0.0001699,2]
[400719024,1767793840630,-250.0,0.00017,2]
[400719026,1767793840639,-300.0,0.00017001,2]
[400719028,1767793840648,-1473.73,0.0001701,2]
[400719030,1767793840658,-1000.0,0.00017024,2]
[400719032,1767793840667,-2737.23490613,0.0001703,2]
[400719033,1767793840676,-1000.0,0.00017051,2]
[400719035,1767793840686,-300.0,0.00017094,2]
[400719037,1767793840695,-23992.66237648,0.00017128,2]
[400719039,1767793840704,-200.0,0.00017158,2]
[400719041,1767793840714,-500.0,0.00017158,2]
[400719043,1767793840723,-260.0,0.00017179,2]
[400719045,1767793840733,-166.66,0.00017189,2]
[400719047,1767793840744,-1000.0,0.00017191,2]
[400719049,1767793840757,-595.37131296,0.00017193,2]
[400719051,1767793840767,-300.0,0.00017205,2]
[400719052,1767793840776,-5888.0,0.00017271,2]
[400719054,1767793840787,-23992.66237648,0.00017282,2]
[400719056,1767793840796,-1473.73,0.00017284,2]
[400719058,1767793840805,-300.0,0.00017294,2]
[400719060,1767793840814,-232.0,0.00017305,2]
[400719062,1767793840824,-300.0,0.00017336,2]
[400719064,1767793840833,-1000.0,0.00017399,2]
[400719090,1767793841112,-168.0,0.00017401,2]
[400719092,1767793841123,-300.0,0.00017405,2]
[400719094,1767793841132,-476.0,0.00017433,2]
[400719096,1767793841142,-23992.66237648,0.00017437,2]
[400719098,1767793841152,-322.23,0.00017447,2]
[400719100,1767793841162,-420.0,0.00017469,2]
[400719102,1767793841170,-420.0,0.0001747,2]
[400719103,1767793841182,-420.0,0.0001747,2]
[400719104,1767793841191,-476.0,0.00017472,2]
[400719105,1767793841203,-1000.0,0.00017477,2]
[400719106,1767793841212,-2000.0,0.000175,2]
[400719107,1767793841222,-1200.0,0.000175,3]
[400719108,1767793841231,-1000.0,0.000175,2]
[400719109,1767793841240,-1000.0,0.000175,2]
[400719110,1767793841250,-630.21,0.000175,2]
[400719111,1767793841260,-150.0,0.00017532,2]
[400719112,1767793841271,-1000.0,0.00017537,2]
[400719113,1767793841281,-404.78481135,0.00017541,2]
[400719114,1767793841290,-2997.5512194,0.00017541,2]
[400719115,1767793841300,-189.05,0.00017551,2]
[400719116,1767793841309,-1680.0,0.00017558,2]
[400719117,1767793841319,-1473.73,0.00017558,2]
[400719118,1767793841328,-451.14875699,0.00017562,2]
[400719119,1767793841337,-170.3265236,0.00017571,2]
[400719120,1767793841347,-500.0,0.00017571,2]
[400719121,1767793841357,-3258.8510406,0.00017572,2]
[400719122,1767793841368,-127647.6932712,0.00017572,2]
[400719123,1767793841377,-34837.2546742,0.00017572,2]
[400719124,1767793841387,-600.0,0.00017575,2]
[400719125,1767793841396,-300.0,0.00017575,2]
[400719126,1767793841406,-152.10889041,0.00017575,2]
[400719127,1767793841416,-250.0,0.00017575,2]
[400719128,1767793841425,-600.0,0.00017575,2]
[400719129,1767793841435,-600.0,0.00017575,2]
[400719130,1767793841444,-620.97403321,0.00017575,2]
[400719131,1767793841453,-300.0,0.00017575,2]
[400719132,1767793841463,-195.0,0.00017575,2]
[400719133,1767793841472,-300.0,0.00017575,2]
[400719134,1767793841482,-250.0,0.00017575,2]
[400719135,1767793841491,-5000.0,0.00017575,2]
[400719136,1767793841501,-5000.0,0.00017575,2]
[400719137,1767793841510,-2500.0,0.00017575,2]
[400719138,1767793841520,-193.0,0.00017575,2]
[400719139,1767793841529,-3030.33548272,0.00017576,2]
[400719140,1767793841539,-158.03890622,0.00017576,2]
[400719141,1767793841548,-476.0,0.00017586,2]
[400719142,1767793841558,-23992.66237648,0.00017591,2]
[400719143,1767793841567,-500.0,0.00017593,2]
[400719144,1767793841577,-500.0,0.00017594,2]
[400719145,1767793841586,-500.0,0.00017594,2]
[400719146,1767793841596,-500.0,0.00017594,2]
[400719147,1767793841605,-500.0,0.00017594,2]
[400719148,1767793841614,-500.0,0.00017594,2]
[400719149,1767793841624,-165.31618738,0.00017594,2]
[400719150,1767793841634,-500.93985952,0.00017594,2]
[400719151,1767793841645,-500.0,0.00017594,2]
[400719152,1767793841654,-536.66734105,0.00017594,2]
[400719153,1767793841664,-500.0,0.00017594,2]
[400719154,1767793841673,-500.0,0.00017594,2]
[400719155,1767793841683,-169.74559645,0.00017594,2]
[400719156,1767793841692,-538.59757642,0.00017594,2]
[400719157,1767793841702,-224.66209336,0.00017594,2]
[400719158,1767793841712,-175.21486475,0.00017594,2]
[400719159,1767793841722,-500.0,0.00017594,2]
[400719160,1767793841732,-500.0,0.00017594,2]
[400719161,1767793841746,-500.0,0.00017594,2]
[400719162,1767793841756,-500.0,0.00017594,2]
[400719163,1767793841765,-500.0,0.00017594,2]
[400719164,1767793841775,-500.0,0.00017594,2]
[400719165,1767793841785,-500.0,0.00017594,2]
[400719166,1767793841795,-162.472435,0.00017594,2]
[400719167,1767793841804,-163.2920989,0.00017594,2]
[400719168,1767793841816,-500.0,0.00017594,2]
[400719169,1767793841825,-500.0,0.00017594,2]
[400719170,1767793841834,-500.0,0.00017594,2]
[400719171,1767793841844,-500.0,0.00017594,2]
[400719172,1767793841854,-166.24303816,0.00017594,2]
[400719173,1767793841863,-438.43604995,0.00017594,2]
[400719174,1767793841873,-500.0,0.00017594,2]
[400719175,1767793841882,-169.0457871,0.00017594,2]
[400719176,1767793841892,-500.0,0.00017594,2]
[400719177,1767793841902,-500.0,0.00017594,2]
[400719178,1767793841911,-500.0,0.00017594,2]
[400719179,1767793841922,-500.0,0.00017594,2]
[400719180,1767793841931,-500.0,0.00017594,2]
[400719181,1767793841941,-500.0,0.00017594,2]
[400719182,1767793841950,-500.0,0.00017594,2]
[400719183,1767793841960,-500.0,0.00017594,2]
[400719184,1767793841970,-485.97527636,0.00017594,2]
[400719185,1767793841980,-236.4594886,0.00017594,2]
[400719186,1767793841989,-500.0,0.00017594,2]
[400719187,1767793841999,-300.0,0.00017606,2]
[400719188,1767793842008,-2997.55121938,0.00017613,2]
[400719189,1767793842018,-1000000.0,0.00017617,2]
[400719190,1767793842027,-1000.0,0.00017641,2]
[400719191,1767793842037,-300.0,0.00017648,2]
[400719192,1767793842046,-300.0,0.00017674,2]
[400719193,1767793842056,-2997.55121938,0.00017685,2]
[400719194,1767793842065,-322.23,0.00017688,2]
[400719195,1767793842074,-500.0,0.00017706,2]
[400719196,1767793842085,-1161.85,0.00017713,2]
[400719197,1767793842094,-1000.0,0.00017713,2]
[400719198,1767793842104,-1000.0,0.00017717,2]
[400719199,1767793842114,-1000.0,0.0001772,2]
[400719200,1767793842125,-166.66,0.00017721,2]
[400719201,1767793842135,-300.0,0.00017726,2]
[400719202,1767793842144,-1000.0,0.00017726,2]
[400719203,1767793842154,-206.81,0.00017728,2]
[400719204,1767793842163,-150.0,0.00017731,2]
[400719205,1767793842172,-300.0,0.00017732,2]
[400719206,1767793842182,-1000.0,0.00017733,2]
[400719207,1767793842191,-300.0,0.00017734,2]
[400719208,1767793842200,-300.0,0.00017734,2]
[400719209,1767793842211,-300.0,0.00017735,2]
[400719210,1767793842220,-1000.0,0.00017735,2]
[400719211,1767793842230,-300.0,0.00017736,2]
[400719212,1767793842239,-300.0,0.00017737,2]
[400719213,1767793842249,-300.0,0.00017739,2]
[400719214,1767793842259,-617.40005154,0.00017741,2]
[400719215,1767793842268,-1000.0,0.00017741,2]
[400719216,1767793842277,-300.0,0.00017742,2]
[400719217,1767793842287,-23992.66237648,0.00017746,2]
[400719218,1767793842296,-150.0,0.00017748,2]
[400719219,1767793842306,-1000.0,0.00017751,2]
[400719220,1767793842316,-300.0,0.00017752,2]
[400719221,1767793842326,-2997.55121938,0.00017756,2]
[400719222,1767793842337,-300.0,0.00017759,2]
[400719223,1767793842351,-1000.0,0.0001776,2]
[400719224,1767793842361,-300.0,0.00017761,2]
[400719225,1767793842370,-300.0,0.00017761,2]
[400719226,1767793842379,-300.0,0.00017765,2]
[400719227,1767793842389,-300.0,0.00017766,2]
[400719228,1767793842398,-300.0,0.00017768,2]
[400719229,1767793842407,-1000.0,0.00017771,2]
[400719230,1767793842417,-1000.0,0.00017772,2]
[400719231,1767793842426,-1000.0,0.00017773,2]
[400719232,1767793842435,-300.0,0.00017776,2]
[400719233,1767793842444,-300.0,0.00017776,2]
[400719234,1767793842453,-1000.0,0.00017782,2]
[400719235,1767793842463,-300.0,0.00017785,2]
[400719236,1767793842472,-300.0,0.00017785,2]
[400719237,1767793842482,-300.0,0.00017785,2]
[400719238,1767793842491,-1000.0,0.00017786,2]
[400719239,1767793842504,-300.0,0.00017791,2]
[400719240,1767793842514,-1000.0,0.00017791,2]
[400719241,1767793842525,-300.0,0.00017792,2]
[400719242,1767793842535,-300.0,0.00017793,2]
[400719243,1767793842544,-1000.0,0.00017793,2]
[400719244,1767793842553,-206.81,0.00017794,2]
[400719245,1767793842563,-300.0,0.00017796,2]
[400719246,1767793842572,-1000.0,0.00017796,2]
[400719247,1767793842582,-1000.0,0.00017799,2]
[400719248,1767793842591,-1000.0,0.00017803,2]
[400719249,1767793842601,-300.0,0.00017804,2]
[400719250,1767793842610,-1000.0,0.00017805,2]
[400719251,1767793842620,-150.0,0.00017807,2]
[400719252,1767793842630,-300.0,0.00017809,2]
[400719253,1767793842639,-300.0,0.0001781,2]
[400719254,1767793842649,-300.0,0.0001781,2]
[400719255,1767793842658,-300.0,0.00017811,2]
[400719256,1767793842668,-300.0,0.00017813,2]
[400719257,1767793842677,-300.0,0.00017813,2]
[400719258,1767793842687,-300.0,0.00017814,2]
[400719259,1767793842697,-300.0,0.00017816,2]
[400719260,1767793842707,-300.0,0.00017817,2]
[400719261,1767793842717,-300.0,0.00017817,2]
[400719262,1767793842727,-300.0,0.00017821,2]
[400719263,1767793842737,-150.0,0.00017822,2]
[400719264,1767793842749,-300.0,0.00017824,2]
[400719266,1767793842758,-300.0,0.00017824,2]
[400719267,1767793842769,-300.0,0.00017828,2]
[400719268,1767793842779,-2997.55121938,0.00017828,2]
[400719269,1767793842788,-1473.73,0.00017832,2]
[400719270,1767793842797,-300.0,0.00017833,2]
[400719271,1767793842807,-300.0,0.00017833,2]
[400719272,1767793842817,-300.0,0.00017835,2]
[400719273,1767793842827,-161.23858714,0.00017836,2]
[400719274,1767793842836,-300.0,0.0001784,2]
[400719276,1767793842845,-1000.0,0.0001784,2]
[400719277,1767793842855,-300.0,0.00017845,2]
[400719278,1767793842865,-300.0,0.00017847,2]
[400719279,1767793842874,-300.0,0.00017847,2]
[400719280,1767793842883,-200.0,0.00017855,2]
[400719281,1767793842893,-200.0,0.00017856,2]
[400719282,1767793842901,-2851.811,0.00017856,2]
[400719283,1767793842910,-237.523,0.00017856,2]
[400719284,1767793842920,-200.0,0.00017856,2]
[400719285,1767793842928,-200.0,0.00017856,2]
[400719286,1767793842938,-1000.0,0.00017858,2]
[400719287,1767793842947,-300.0,0.00017861,2]
[400719288,1767793842957,-1000.0,0.00017863,2]
[400719289,1767793842966,-300.0,0.00017867,2]
[400719290,1767793842975,-150.0,0.00017868,2]
[400719291,1767793842984,-300.0,0.00017869,2]
[400719292,1767793842994,-300.0,0.0001787,2]
[400719293,1767793843003,-300.0,0.00017873,2]
[400719294,1767793843012,-300.0,0.00017874,2]
[400719295,1767793843022,-1000.0,0.00017874,2]
[400719296,1767793843031,-1000.0,0.00017874,2]
[400719297,1767793843040,-150.0,0.00017875,2]
[400719298,1767793843049,-1000.0,0.00017877,2]
[400719299,1767793843059,-1000.0,0.00017878,2]
[400719300,1767793843068,-300.0,0.0001788,2]
[400719301,1767793843077,-300.0,0.00017886,2]
[400719302,1767793843087,-300.0,0.00017888,2]
[400719303,1767793843096,-300.0,0.00017891,2]
[400719304,1767793843105,-150.0,0.00017893,2]
[400719305,1767793843114,-300.0,0.00017895,2]
[400719306,1767793843123,-1000.0,0.00017896,2]
[400719307,1767793843133,-300.0,0.00017897,2]
[400719308,1767793843142,-500.0,0.00017899,2]
[400719309,1767793843151,-500.0,0.00017899,2]
[400719310,1767793843160,-500.0,0.00017899,2]
[400719311,1767793843169,-276.34900722,0.00017899,2]
[400719312,1767793843178,-500.0,0.00017899,2]
[400719313,1767793843188,-500.0,0.00017899,2]
[400719314,1767793843197,-500.0,0.00017899,2]
[400719315,1767793843208,-500.0,0.00017899,2]
[400719316,1767793843217,-500.0,0.00017899,2]
[400719317,1767793843226,-500.0,0.00017899,2]
[400719318,1767793843235,-461.49248906,0.00017899,2]
[400719319,1767793843245,-10000.0,0.000179,2]
[400719320,1767793843254,-17133.17592671,0.000179,2]
[400719321,1767793843263,-23992.66237648,0.000179,2]
[400719322,1767793843272,-465.68919574,0.000179,2]
[400719323,1767793843282,-2866.87344808,0.000179,2]
[400719324,1767793843290,-470.13918125,0.000179,2]
[400719325,1767793843299,-201.99613239,0.000179,3]
[400719326,1767793843309,-2997.55121938,0.000179,2]
[400719327,1767793843318,-6869.0,0.000179,2]
[400719328,1767793843328,-300.0,0.00017906,2]
[400719329,1767793843337,-150.0,0.00017906,2]
[400719330,1767793843346,-1000.0,0.00017909,2]
[400719331,1767793843355,-300.0,0.0001791,2]
[400719332,1767793843365,-300.0,0.00017913,2]
[400719333,1767793843374,-1000.0,0.00017913,2]
[400719334,1767793843383,-300.0,0.00017914,2]
[400719335,1767793843393,-300.0,0.00017914,2]
[400719336,1767793843402,-300.0,0.00017915,2]
[400719337,1767793843411,-300.0,0.00017915,2]
[400719338,1767793843420,-1000.0,0.00017916,2]
[400719339,1767793843431,-1000.0,0.00017917,2]
[400719340,1767793843440,-300.0,0.00017919,2]
[400719341,1767793843449,-1000.0,0.00017924,2]
[400719342,1767793843459,-300.0,0.0001793,2]
[400719343,1767793843468,-300.0,0.00017931,2]
[400719344,1767793843478,-300.0,0.00017931,2]
[400719345,1767793843488,-150.0,0.00017932,2]
[400719346,1767793843497,-1000.0,0.00017933,2]
[400719348,1767793843507,-300.0,0.00017934,2]
[400719350,1767793843516,-300.0,0.00017934,2]
[400719352,1767793843525,-300.0,0.00017935,2]
[400719353,1767793843534,-1000.0,0.00017938,2]
[400719354,1767793843544,-1000.0,0.0001794,2]
[400719355,1767793843553,-500.0,0.00017941,2]
[400719356,1767793843563,-300.0,0.00017942,2]
[400719357,1767793843573,-300.0,0.00017944,2]
[400719358,1767793843583,-214.82,0.00017944,2]
[400719359,1767793843592,-300.0,0.00017947,2]
[400719360,1767793843602,-300.0,0.00017948,2]
[400719361,1767793843611,-300.0,0.0001795,2]
[400719362,1767793843622,-300.0,0.0001795,2]
[400719363,1767793843631,-1000.0,0.00017952,2]
[400719364,1767793843641,-150.0,0.00017954,2]
[400719365,1767793843651,-150.0,0.00017954,2]
[400719366,1767793843661,-300.0,0.00017955,2]
[400719367,1767793843671,-300.0,0.00017957,2]
[400719368,1767793843681,-300.0,0.00017957,2]
[400719369,1767793843690,-150.0,0.00017957,2]
[400719370,1767793843708,-150.0,0.00017958,2]
[400719371,1767793843718,-214.82,0.00017959,2]
[400719372,1767793843727,-150.0,0.0001796,2]
[400719373,1767793843737,-300.0,0.00017962,2]
[400719374,1767793843748,-300.0,0.00017963,2]
[400719375,1767793843758,-300.0,0.00017963,2]
[400719376,1767793843767,-150.0,0.00017963,2]
[400719377,1767793843777,-1000.0,0.00017964,2]
[400719378,1767793843787,-461.04561562,0.00017964,2]
[400719379,1767793843796,-300.0,0.00017968,2]
[400719380,1767793843806,-1000.0,0.00017973,2]
[400719381,1767793843816,-150.0,0.00017975,2]
[400719382,1767793843825,-300.0,0.0001798,2]
[400719383,1767793843835,-500.0,0.00017982,2]
[400719384,1767793843844,-1000.0,0.00017983,2]
[400719385,1767793843854,-300.0,0.00017984,2]
[400719386,1767793843863,-150.0,0.00017984,2]
[400719387,1767793843872,-300.0,0.00017986,2]
[400719388,1767793843882,-451.14875699,0.0001799,2]
[400719389,1767793843892,-451.14875699,0.0001799,2]
[400719390,1767793843901,-300.0,0.00017997,2]
[400719391,1767793843911,-1006.0557,0.00017999,2]
[400719392,1767793843920,-670.98213381,0.00017999,2]
[400719393,1767793843929,-300.0,0.00017999,2]
[400719394,1767793843939,-300.0,0.00017999,2]
[400719395,1767793843948,-500.0,0.00017999,2]
[400719396,1767793843958,-500.0,0.00017999,2]
[400719397,1767793843967,-500.0,0.00017999,2]
[400719398,1767793843977,-500.0,0.00017999,2]
[400719399,1767793843986,-500.0,0.00017999,2]
[400719400,1767793843995,-500.0,0.00017999,2]
[400719401,1767793844004,-500.0,0.00017999,2]
[400719402,1767793844014,-500.0,0.00017999,2]
[400719403,1767793844023,-500.0,0.00017999,2]
[400719404,1767793844032,-507.70589481,0.00017999,2]
[400719405,1767793844042,-666.0,0.00017999,2]
[400719406,1767793844051,-300.0,0.00017999,2]
[400719407,1767793844060,-300.0,0.00017999,2]
[400719408,1767793844069,-666.0,0.00017999,2]
[400719409,1767793844079,-3501328.33484192,0.00018,2]
[400719410,1767793844089,-298067.28380254,0.00018,2]
[400719414,1767793846186,-151.0,0.00016765,2]
[400719415,1767793846196,-151.0,0.00016765,2]
[400719417,1767793846206,-17488.53601644,0.00018,2]
[400719418,1767793846304,-792.03583339,0.00018,2]
[400719419,1767793846316,-1853.16,0.00018,2]
[400719420,1767793848270,-5368.00998051,0.00018,2]
[400719421,1767793849098,-458327.23407769,0.00018,2]
[400719422,1767793849616,-48623.49201335,0.00018,2]
[400719423,1767793943645,10000.01,0.00015879,2]
[400719424,1767793943673,10000.01,0.00015879,2]
[400719425,1767793943702,10000.01,0.00015879,2]
[400719426,1767793943730,10000.01,0.00015879,2]
[400719427,1767793943758,10000.01,0.00015879,2]
[400719428,1767793943789,10000.01,0.00015879,2]
[400719429,1767793943816,10000.01,0.00015879,2]
[400719430,1767793943845,10000.01,0.00015879,2]
[400719431,1767793943873,10000.01,0.00015879,2]
[400719432,1767793943901,10000.01,0.00015879,2]
[400719433,1767793985994,-2085.00216642,0.00015879,2]
[400719434,1767793986028,-10000.01,0.00015879,2]
[400719435,1767793992755,-10000.01,0.00015879,2]
[400719436,1767793992898,-10000.01,0.00015879,2]
[400719437,1767793992981,-10000.01,0.00015879,2]
[400719438,1767793993107,-10000.01,0.00015879,2]